bitfinex/quotes_SOLUSD_20250123
["timestamp","ask_amount","ask_price","bid_price","bid_amount"]
[1737647031794,9.1412,248.8,248.68,312.0]
[1737647032198,23.776884,248.79,248.68,312.0]
[1737647033011,23.776884,248.79,248.69,10.0526]
[1737647034890,9.1412,248.8,248.69,10.0526]
[1737647036008,9.1412,248.8,248.69,322.0526]
[1737647036309,9.1412,248.8,248.69,326.0736]
[1737647036607,23.776884,248.79,248.69,14.0736]
[1737647037197,23.776884,248.74,248.67,0.03]
[1737647037414,30.21639789,248.75,248.67,0.03]
[1737647037415,23.776884,248.72,248.67,0.03]
[1737647037586,23.776884,248.69,248.67,0.03]
[1737647038415,22.65254177,248.72,248.67,0.03]
[1737647038616,23.776884,248.71,248.67,0.03]
[1737647038915,18.63194177,248.72,248.67,0.03]
[1737647039095,23.776884,248.71,248.67,0.03]
[1737647039616,42.40882577,248.74,248.67,0.03]
[1737647040105,18.63194177,248.74,248.67,0.03]
[1737647040280,23.776884,248.75,248.67,0.03]
[1737647040616,10.1412,248.8,248.67,0.03]
[1737647040617,9.1412,248.8,248.67,0.03]
[1737647040989,18.63194177,248.78,248.67,0.03]
[1737647041181,23.776884,248.77,248.67,0.03]
[1737647041612,2.3620336,248.79,248.67,0.03]
[1737647042214,23.776884,248.78,248.67,0.03]
[1737647042610,23.776884,248.79,248.67,0.03]
[1737647043616,23.776884,248.79,248.67,312.03]
[1737647043796,23.776884,248.79,248.68,4.0212]
[1737647044005,18.63194177,248.78,248.68,4.0212]
[1737647045017,23.776884,248.79,248.68,4.0212]
[1737647045408,23.776884,248.75,248.67,0.03]
[1737647045605,23.776884,248.71,248.67,0.03]
[1737647045814,23.776884,248.69,248.67,0.03]
[1737647046321,18.63194177,248.68,248.67,0.03]
[1737647046523,42.40882577,248.68,248.67,0.03]
[1737647047304,23.776884,248.68,248.67,0.03]
[1737647048300,42.40882577,248.68,248.67,0.03]
[1737647048710,51.44622577,248.68,248.67,0.03]
[1737647049316,50.44622577,248.68,248.67,0.03]
[1737647050311,74.50622577,248.68,248.67,0.03]
[1737647050731,50.44622577,248.68,248.67,0.03]
[1737647050916,52.79627655,248.68,248.67,0.03]
[1737647052226,2.35005078,248.68,248.67,0.03]
[1737647054519,8.4025,248.75,248.67,0.03]
[1737647054904,18.63194177,248.8,248.67,0.03]
[1737647055605,23.776884,248.79,248.67,0.03]
[1737647055825,18.63194177,248.8,248.67,0.03]
[1737647056006,8.0754,248.81,248.67,0.03]
[1737647056420,23.776884,248.8,248.67,0.03]
[1737647057121,23.776884,248.76,248.67,0.03]
[1737647057426,23.776884,248.76,248.67,4.0513]
[1737647058010,23.776884,248.77,248.67,4.0513]
[1737647059244,8.0754,248.81,248.67,14.1047]
[1737647060122,23.776884,248.8,248.67,14.1047]
[1737647061540,0.0001,248.81,248.7,20.0]
[1737647062318,0.0001,248.81,248.71,312.0]
[1737647063226,0.0001,248.81,248.74,20.0]
[1737647063627,0.0001,248.81,248.75,4.0201]
[1737647064021,23.776884,248.8,248.7,4.0209]
[1737647064428,23.776884,248.78,248.7,4.0209]
[1737647064941,0.0001,248.81,248.67,0.03]
[1737647064942,23.776884,248.76,248.67,0.03]
[1737647065139,23.776884,248.76,248.68,4.0211]
[1737647065519,23.776884,248.76,248.67,0.03]
[1737647065843,18.63194177,248.79,248.67,4.0513]
[1737647066026,23.776884,248.78,248.67,4.0513]
[1737647066728,23.776884,248.76,248.67,4.0513]
[1737647067237,20.0,248.77,248.67,14.1047]
[1737647067621,18.63194177,248.8,248.67,14.1047]
[1737647067821,23.776884,248.79,248.67,14.1047]
[1737647068022,0.0001,248.81,248.67,14.1047]
[1737647068221,0.0001,248.81,248.7,20.0]
[1737647068846,2.35024719,248.78,248.7,20.0]
[1737647069738,2.35024719,248.78,248.74,20.0]
[1737647070945,4.719e-05,248.78,248.76,20.0]
[1737647071146,0.0001,248.81,248.77,20.0]
[1737647071357,0.0001,248.81,248.78,2.1799]
[1737647071852,0.0001,248.81,248.8,20.0]
[1737647074637,0.063,248.89,248.8,332.0]
[1737647074847,0.063,248.89,248.84,20.0]
[1737647075755,0.063,249.04,248.89,2.1075]
[1737647075926,0.063,249.04,248.92,20.0]
[1737647077848,0.063,249.04,248.89,2.1075]
[1737647078041,0.063,249.04,248.96,20.0]
[1737647079040,0.063,249.04,249.0,20.0]
[1737647080758,0.063,249.06,249.01,2.1338]
[1737647081061,8.4361,249.24,249.04,20.0]
[1737647081242,8.4361,249.24,249.08,20.0]
[1737647081441,4.0123,249.23,249.08,20.0]
[1737647081664,18.63194177,249.29,249.05,20.0]
[1737647081833,8.1139,249.3,249.05,87.8]
[1737647082036,8.1139,249.3,249.08,20.0]
[1737647082548,23.776884,249.29,249.08,20.0]
[1737647082752,23.776884,249.29,249.06,20.0]
[1737647082975,22.64374177,249.26,249.08,10.0366]
[1737647083154,22.64374177,249.26,249.07,4.0149]
[1737647083155,23.776884,249.21,249.07,4.0149]
[1737647083457,23.776884,249.21,249.07,14.0522]
[1737647083640,23.776884,249.21,249.07,4.0149]
[1737647083832,42.40882577,249.21,249.07,4.0149]
[1737647084430,43.40882577,249.21,249.05,4.0152]
[1737647084642,23.776884,249.17,249.05,4.0152]
[1737647085164,23.776884,249.17,249.05,14.0533]
[1737647085466,23.776884,249.24,249.05,14.0533]
[1737647085655,20.0,249.21,249.05,14.0533]
[1737647085957,23.776884,249.24,249.08,20.0]
[1737647086156,20.0,249.17,249.05,4.0152]
[1737647086336,23.776884,249.14,249.03,4.0154]
[1737647087376,4.013,249.19,249.03,4.0154]
[1737647087667,23.776884,249.18,249.03,4.0154]
[1737647087843,23.776884,249.18,249.05,20.0]
[1737647088044,23.776884,249.18,249.03,4.0154]
[1737647088045,42.40882577,249.19,249.03,4.0154]
[1737647088245,23.776884,249.16,249.03,4.0154]
[1737647088440,20.0,249.16,249.03,4.0154]
[1737647088763,23.776884,249.16,249.03,4.0154]
[1737647089346,4.0126,249.22,249.03,4.0154]
[1737647089545,18.63194177,249.23,249.03,4.0154]
[1737647089863,18.63194177,249.21,249.05,20.0]
[1737647090053,23.776884,249.2,249.05,20.0]
[1737647090247,22.64434177,249.23,249.05,20.0]
[1737647090555,22.64404177,249.25,249.05,20.0]
[1737647090946,23.776884,249.2,249.05,20.0]
[1737647091147,23.776884,249.18,249.03,316.0154]
[1737647091345,27.790084,249.18,249.03,4.0154]
[1737647091556,27.790084,249.18,249.06,20.0]
[1737647092570,23.776884,249.16,249.03,14.0543]
[1737647092866,23.776884,249.14,249.03,4.0454]
[1737647093068,4.0135,249.16,249.03,4.0454]
[1737647093453,23.776884,249.15,249.03,4.0454]
[1737647093853,18.63194177,249.21,249.05,20.0]
[1737647094364,18.69494177,249.23,249.09,20.0]
[1737647094773,18.69494177,249.23,249.1,14.0505]
[1737647095371,23.776884,249.22,249.1,14.0505]
[1737647096147,18.69494177,249.23,249.1,4.0144]
[1737647096148,18.63194177,249.19,249.1,4.0144]
[1737647096470,23.776884,249.18,249.04,4.0154]
[1737647096762,18.63194177,249.21,249.04,24.0154]
[1737647096966,23.776884,249.2,249.04,24.0154]
[1737647097348,20.0,249.2,249.04,34.0539]
[1737647097756,23.776884,249.18,249.04,346.0539]
[1737647098279,27.790084,249.18,249.04,346.0539]
[1737647098572,23.776884,249.18,249.04,346.0539]
[1737647098771,27.789984,249.18,249.04,346.0539]
[1737647099067,23.776884,249.18,249.04,346.0539]
[1737647100241,0.063,249.23,249.04,346.0539]
[1737647100446,0.063,249.23,249.04,54.1309]
[1737647100647,0.063,249.23,249.09,20.0]
[1737647100845,0.063,249.23,249.14,2.1147]
[1737647101047,0.0001,249.23,249.14,2.1147]
[1737647101249,18.63194177,249.44,249.19,22.1147]
[1737647101472,22.64094177,249.44,249.19,22.1147]
[1737647101686,22.64064177,249.46,249.2,21.0]
[1737647101864,22.64064177,249.46,249.24,20.0]
[1737647102177,47.40283443,249.48,249.25,10.0839]
[1737647102349,18.63194177,249.44,249.26,14.0414]
[1737647102546,18.63194177,249.4,249.26,4.0118]
[1737647102780,18.63194177,249.36,249.25,10.0839]
[1737647102954,18.63194177,249.36,249.17,2.0623]
[1737647102955,23.776884,249.26,249.17,2.0623]
[1737647103152,18.63194177,249.23,249.17,2.0623]
[1737647103355,23.776884,249.18,249.04,4.0154]
[1737647103561,23.776884,249.18,248.95,2.1681]
[1737647103562,23.776884,249.1,249.0,4.016]
[1737647103746,23.776884,249.08,248.95,2.1681]
[1737647103952,18.63194177,249.07,248.95,2.1681]
[1737647104161,18.63194177,249.07,248.96,4.0166]
[1737647104371,23.776884,249.04,248.92,4.0172]
[1737647104678,23.776884,249.0,248.83,6.1867]
[1737647104849,23.776884,248.96,248.83,6.1867]
[1737647105047,18.63194177,249.07,248.86,20.0]
[1737647105252,18.63194177,248.96,248.83,2.1681]
[1737647105557,20.0,249.09,248.78,0.03]
[1737647105558,23.776884,248.89,248.78,0.03]
[1737647105757,18.63194177,248.9,248.78,0.03]
[1737647105758,23.776884,248.95,248.79,4.0194]
[1737647106369,30.21423869,248.8,248.78,0.03]
[1737647106550,22.0,248.72,248.71,59.30003149]
[1737647106760,23.776884,248.68,248.67,27.46232676]
[1737647107075,53.99112269,248.68,248.67,27.46232676]
[1737647107276,30.21423869,248.75,248.67,19.84422977]
[1737647107465,20.68485331,248.74,248.67,19.84422977]
[1737647107784,30.21423869,248.88,248.63,4.0519]
[1737647107785,30.21423869,248.77,248.63,4.0519]
[1737647108077,32.06303251,248.83,248.63,4.0519]
[1737647108282,30.21423869,248.85,248.66,20.0]
[1737647108655,23.776884,248.84,248.66,20.0]
[1737647108879,30.21423869,248.85,248.71,20.0]
[1737647109047,30.21423869,248.87,248.71,20.0]
[1737647109254,30.21423869,248.85,248.71,20.0]
[1737647109458,30.21423869,248.85,248.66,20.0]
[1737647109677,30.21423869,248.83,248.8,312.0]
[1737647109881,32.21423869,248.88,248.66,20.0]
[1737647109882,30.21423869,248.81,248.66,20.0]
[1737647110055,96.44366884,248.82,248.67,43.776884]
[1737647110381,96.44366884,248.82,248.68,14.0742]
[1737647110770,96.44366884,248.82,248.7,24.776884]
[1737647110969,29.94868962,248.84,248.82,23.776884]
[1737647111298,42.86385282,249.07,248.82,1.0]
[1737647111584,42.86385282,249.07,248.81,1.85466815]
[1737647111787,42.86385282,249.07,248.82,2.0]
[1737647111965,42.86385282,249.07,248.88,1.0]
[1737647112160,42.86385282,249.07,248.88,87.8]
[1737647112380,5.36969894,249.11,249.06,312.0]
[1737647112559,30.21423869,249.1,248.95,4.0168]
[1737647112759,5.36969894,249.11,248.95,4.0168]
[1737647113013,5.36969894,249.11,248.95,14.0589]
[1737647113160,5.36969894,249.11,248.98,20.0]
[1737647114093,6.09312056,249.14,249.03,20.0]
[1737647114389,6.09312056,249.14,249.07,20.0]
[1737647114766,2.056e-05,249.14,249.07,20.0]
[1737647115570,2.056e-05,249.14,249.13,312.0]
[1737647115773,6.168e-05,249.18,249.16,20.0]
[1737647116087,2.68349266,249.22,249.16,20.0]
[1737647116261,2.68349266,249.22,249.1,1.0]
[1737647116461,9.266e-05,249.22,249.15,20.0]
[1737647116685,23.776884,249.37,249.15,20.0]
[1737647116879,20.0,249.34,249.11,14.0499]
[1737647117081,31.21423869,249.38,249.14,20.0]
[1737647117390,23.776884,249.35,249.14,20.0]
[1737647117590,20.0,249.3,249.14,20.0]
[1737647117766,23.776884,249.29,249.14,20.0]
[1737647117970,23.776884,249.29,249.23,12.36182025]
[1737647118178,30.21423869,249.29,249.23,12.36182025]
[1737647118369,32.02610429,249.35,249.23,12.36182025]
[1737647118567,30.21423869,249.37,249.23,16.37402025]
[1737647118780,30.21423869,249.37,249.23,4.0122]
[1737647119175,20.0,249.34,249.23,316.0122]
[1737647119495,1.0,249.44,249.23,316.0122]
[1737647119496,1.79194222,249.44,249.26,20.0]
[1737647119799,30.21423869,249.45,249.26,20.0]
[1737647119972,30.21423869,249.41,249.26,20.0]
[1737647120174,30.21423869,249.45,249.26,20.0]
[1737647120367,0.063,249.46,249.32,20.0]
[1737647120591,0.063,249.46,249.33,1.0]
[1737647120805,0.063,249.46,249.33,20.0]
[1737647120985,0.063,249.46,249.37,20.0]
[1737647121186,0.063,249.48,249.38,1.0]
[1737647121480,30.21423869,249.69,249.44,21.0]
[1737647121675,0.063,249.71,249.51,20.0]
[1737647121991,0.063,249.71,249.55,20.0]
[1737647122202,30.21423869,249.7,249.47,88.7908]
[1737647122401,30.21423869,249.7,249.5,20.0]
[1737647122700,30.21423869,249.68,249.57,312.0]
[1737647122891,30.21423869,249.64,249.48,4.0083]
[1737647123198,30.21423869,249.6,249.44,20.0]
[1737647123370,23.776884,249.53,249.41,9.5276]
[1737647123704,30.21423869,249.5,249.32,4.0109]
[1737647124001,30.21423869,249.54,249.45,49.3458117]
[1737647124168,23.776884,249.49,249.45,49.3458117]
[1737647124367,30.21423869,249.46,249.45,49.3458117]
[1737647124600,30.21423869,249.5,249.45,49.3458117]
[1737647124864,40.23043869,249.6,249.47,24.62159436]
[1737647124865,23.776884,249.52,249.47,24.62159436]
[1737647125093,30.21423869,249.54,249.47,24.62159436]
[1737647125390,23.776884,249.52,249.47,24.62159436]
[1737647125581,30.21423869,249.54,249.47,24.62159436]
[1737647125789,30.21423869,249.56,249.47,24.62159436]
[1737647125993,30.21423869,249.54,249.47,24.62159436]
[1737647126165,1.0,249.61,249.47,24.62159436]
[1737647126166,30.21423869,249.56,249.47,24.62159436]
[1737647126371,23.776884,249.55,249.47,24.62159436]
[1737647126585,30.21423869,249.58,249.47,24.62159436]
[1737647126896,4.0062,249.61,249.47,24.62159436]
[1737647126897,30.21423869,249.61,249.47,24.62159436]
[1737647127103,30.21423869,249.57,249.47,24.62159436]
[1737647127396,30.21423869,249.61,249.5,2.0]
[1737647127583,20.0,249.6,249.5,2.0]
[1737647127784,30.21423869,249.65,249.52,1.0]
[1737647128026,30.21423869,249.65,249.54,1.0]
[1737647128309,30.21423869,249.69,249.56,1.0]
[1737647128471,30.21423869,249.65,249.54,1.0]
[1737647128668,30.21423869,249.65,249.52,1.0]
[1737647128872,30.21423869,249.62,249.52,1.0]
[1737647129103,23.776884,249.61,249.5,12.28199481]
[1737647129297,4.005,249.69,249.49,1.0]
[1737647129298,23.776884,249.59,249.49,1.0]
[1737647129499,23.776884,249.57,249.47,1.0]
[1737647129686,23.776884,249.55,249.43,24.009]
[1737647129881,23.776884,249.55,249.43,4.009]
[1737647130087,0.063,249.71,249.61,1.0]
[1737647130310,0.063,249.71,249.7,1.0]
[1737647130476,0.063,249.71,249.7,5.0048]
[1737647130815,0.063,249.71,249.66,1.0]
[1737647130977,0.063,249.71,249.65,1.0]
[1737647131175,0.063,249.71,249.63,1.0]
[1737647131379,0.063,249.71,249.61,4.0062]
[1737647131599,30.21423869,249.68,249.58,1.0]
[1737647131788,0.063,249.65,249.6,1.0]
[1737647131978,0.063,249.65,249.55,4.0072]
[1737647131979,0.063,249.65,249.56,1.0]
[1737647132186,0.063,249.65,249.53,4.0074]
[1737647132388,0.063,249.65,249.59,1.0]
[1737647132606,0.063,249.65,249.6,1.0]
[1737647132908,0.063,249.65,249.62,1.0]
[1737647133076,0.063,249.65,249.64,1.0]
[1737647133281,0.063,249.71,249.7,2.0]
[1737647133576,30.21423869,249.84,249.73,1.0]
[1737647133899,30.21423869,249.82,249.72,1.0]
[1737647134074,30.21423869,249.82,249.68,1.0]
[1737647134276,23.776884,249.73,249.66,1.0]
[1737647134473,30.21423869,249.76,249.66,1.0]
[1737647134698,30.21423869,249.78,249.66,1.0]
[1737647134887,30.21423869,249.76,249.62,1.0]
[1737647135206,23.776884,249.75,249.68,1.0]
[1737647135376,23.776884,249.75,249.62,2.0]
[1737647135707,30.21423869,249.68,249.56,1.0]
[1737647136001,23.776884,249.67,249.6,1.0]
[1737647136313,23.776884,249.71,249.6,1.0]
[1737647136483,23.776884,249.67,249.58,1.0]
[1737647136690,30.21423869,249.74,249.62,1.0]
[1737647136984,23.776884,249.73,249.63,1.0]
[1737647137184,23.776884,249.73,249.67,1.0]
[1737647137492,30.21423869,249.76,249.65,1.0]
[1737647137695,30.21423869,249.76,249.68,1.0]
[1737647138087,23.776884,249.75,249.66,1.0]
[1737647138401,30.21423869,249.78,249.68,1.0]
[1737647138593,30.21423869,249.78,249.69,1.0]
[1737647138900,23.776884,249.77,249.56,1.0]
[1737647139208,30.21423869,249.58,249.53,1.0]
[1737647139505,23.776884,249.59,249.5,1.0]
[1737647139712,30.21423869,249.64,249.56,1.0]
[1737647139713,25.51944109,249.63,249.56,1.0]
[1737647139883,23.776884,249.63,249.56,1.0]
[1737647140077,30.21423869,249.68,249.53,2.0]
[1737647140382,30.21423869,249.61,249.51,1.0]
[1737647140590,23.776884,249.58,249.46,1.0]
[1737647140788,23.776884,249.58,249.52,1.0]
[1737647140993,30.21423869,249.71,249.61,1.0]
[1737647141185,30.21423869,249.73,249.59,2.0]
[1737647141388,30.21423869,249.69,249.57,1.0]
[1737647141603,23.776884,249.68,249.57,1.0]
[1737647141782,23.776884,249.68,249.55,2.0]
[1737647141991,23.776884,249.66,249.53,1.0]
[1737647142197,23.776884,249.64,249.53,1.0]
[1737647142493,30.21423869,249.65,249.53,1.0]
[1737647142683,23.776884,249.64,249.53,1.0]
[1737647142884,23.776884,249.64,249.55,1.0]
[1737647143087,23.776884,249.64,249.52,1.0]
[1737647143397,23.776884,249.64,249.53,1.0]
[1737647143583,23.776884,249.62,249.48,1.0]
[1737647143789,23.776884,249.62,249.48,6.0082]
[1737647144092,23.776884,249.62,249.49,1.0]
[1737647144296,23.776884,249.58,249.55,0.03]
[1737647144496,23.776884,249.6,249.55,0.03]
[1737647144702,23.776884,249.58,249.55,0.03]
[1737647145003,0.063,249.65,249.58,1.0]
[1737647145219,30.27723869,249.65,249.55,0.03]
[1737647145808,23.776884,249.64,249.55,0.03]
[1737647145992,23.776884,249.64,249.56,1.0]
[1737647146323,0.063,249.65,249.58,1.0]
[1737647146491,0.063,249.65,249.64,1.0]
[1737647146690,0.063,249.65,249.59,1.0]
[1737647146890,0.063,249.65,249.57,1.0]
[1737647147097,0.063,249.65,249.58,2.0]
[1737647147305,0.063,249.65,249.62,1.0]
[1737647147703,0.063,249.65,249.63,1.0]
[1737647148035,0.063,249.65,249.64,1.0]
[1737647148520,0.063,249.65,249.64,5.0057]
[1737647148814,0.063,249.65,249.62,5.0059]
[1737647148992,0.063,249.65,249.62,1.0]
[1737647149803,0.063,249.65,249.64,1.0]
[1737647150307,0.063,249.65,249.64,2.0]
[1737647150509,0.00430933,249.65,249.64,2.0]
[1737647151225,30.21423869,249.82,249.76,1.0]
[1737647151418,30.21423869,249.84,249.76,1.0]
[1737647151720,30.21423869,249.86,249.76,1.0]
[1737647151903,30.21423869,249.84,249.77,1.0]
[1737647152102,30.21423869,249.84,249.78,1.0]
[1737647152306,30.21423869,249.84,249.75,2.0]
[1737647152522,30.21423869,249.88,249.78,2.0]
[1737647152704,30.21423869,249.86,249.75,2.0]
[1737647152908,30.21423869,249.84,249.72,1.0]
[1737647153225,23.776884,249.83,249.72,4.0044]
[1737647153394,23.776884,249.79,249.7,1.0]
[1737647153595,23.776884,249.79,249.67,5.0052]
[1737647153919,23.776884,249.77,249.71,1.0]
[1737647154227,30.21423869,249.73,249.65,1.0]
[1737647154415,30.21423869,249.81,249.69,1.0]
[1737647154617,4.0032,249.8,249.71,1.0]
[1737647154824,34.21683869,249.84,249.76,1.0]
[1737647155011,30.21423869,249.84,249.78,1.0]
[1737647155213,30.21423869,249.86,249.78,1.0]
[1737647155539,30.21423869,249.88,249.79,1.0]
[1737647155695,23.776884,249.87,249.79,1.0]
[1737647155901,30.21423869,249.88,249.79,1.0]
[1737647156300,30.21423869,249.88,249.77,1.0]
[1737647156301,23.776884,249.85,249.77,1.0]
[1737647156534,23.776884,249.85,249.8,1.0]
[1737647156709,23.776884,249.85,249.77,1.0]
[1737647156913,23.776884,249.81,249.75,1.0]
[1737647157227,30.21423869,249.82,249.73,2.0]
[1737647157412,30.21423869,249.82,249.74,1.0]
[1737647158018,4.0654,249.85,249.77,1.0]
[1737647158215,0.063,249.85,249.79,1.0]
[1737647158415,0.063,249.85,249.8,1.0]
[1737647158621,2.33212984,249.81,249.77,1.0]
[1737647159131,2.33212984,249.81,249.74,1.0]
[1737647159313,23.776884,249.79,249.71,1.0]
[1737647159517,23.776884,249.77,249.72,1.0]
[1737647159708,23.776884,249.77,249.7,1.0]
[1737647159911,30.21423869,249.8,249.75,1.0]
[1737647159912,2.33212984,249.8,249.75,1.0]
[1737647160114,2.33212984,249.8,249.77,1.0]
[1737647160510,2.33212984,249.8,249.79,1.0]
[1737647160716,2.33212984,249.8,249.77,1.0]
[1737647161014,2.33212984,249.8,249.73,1.0]
[1737647161215,23.776884,249.79,249.72,1.0]
[1737647161426,23.776884,249.79,249.75,1.0]
[1737647161631,23.776884,249.81,249.75,1.0]
[1737647161837,30.21423869,249.84,249.78,1.0]
[1737647162040,0.063,249.85,249.81,1.0]
[1737647162224,0.063,249.85,249.7,4.0047]
[1737647162225,0.063,249.85,249.84,1.0]
[1737647162425,0.063,249.85,249.84,2.0]
[1737647163018,0.063,249.85,249.82,1.0]
[1737647163220,2.40739493,249.85,249.83,1.0]
[1737647163419,0.063,249.85,249.83,1.0]
[1737647163638,0.063,249.85,249.84,1.0]
[1737647164133,0.0001,249.85,249.84,1.0]
[1737647164335,0.063,249.9,249.89,2.0]
[1737647164648,0.063,249.9,249.89,6.0017]
[1737647167053,0.063,249.9,249.89,2.0]
[1737647167621,0.063,249.9,249.89,1.0]
[1737647167841,0.063,249.9,249.89,2.0]
[1737647168141,0.063,249.9,249.85,1.0]
[1737647168347,0.063,249.9,249.88,1.0]
[1737647168725,0.063,249.9,249.89,1.0]
[1737647169755,0.063,249.9,249.89,2.0]
[1737647169953,10.0091,250.07,250.01,1.0]
[1737647170155,10.0091,250.07,250.03,1.0]
[1737647170336,3.9978,250.14,250.05,1.0]
[1737647170531,30.21423869,250.15,250.05,1.0]
[1737647170746,12.8127987,250.11,250.02,1.0]
[1737647170945,8.8144987,250.11,250.07,1.0]
[1737647171149,3.9979,250.13,250.05,1.0]
[1737647171457,3.9979,250.13,250.06,1.0]
[1737647171830,3.9977,250.15,250.07,1.0]
[1737647172026,2.34953498,250.12,250.08,1.0]
[1737647172257,2.34953498,250.12,250.1,1.0]
[1737647172460,2.34953498,250.12,250.11,1.0]
[1737647172763,2.34953498,250.12,250.08,1.0]
[1737647173082,2.34953498,250.12,250.09,1.0]
[1737647173358,2.34953498,250.19,250.16,1.0]
[1737647173563,2.34953498,250.19,250.18,1.0]
[1737647173860,2.34953498,250.19,250.18,2.0]
[1737647174064,2.34953498,250.19,250.18,1.0]
[1737647174236,2.34953498,250.19,250.09,9.2467]
[1737647174237,32.56377367,250.19,250.09,1.0]
[1737647174440,30.21423869,250.17,250.05,2.0]
[1737647174760,30.21423869,250.11,250.02,1.0]
[1737647174942,30.21423869,250.09,249.98,1.0]
[1737647175149,3.9979,250.13,249.96,1.0]
[1737647175150,30.21423869,250.07,249.99,1.0]
[1737647175348,30.21423869,250.07,249.97,1.0]
[1737647175544,30.21423869,250.07,249.96,1.0]
[1737647175545,23.776884,250.04,249.96,1.0]
[1737647175855,30.21423869,249.99,249.96,2.0]
[1737647176058,30.21423869,250.03,249.99,1.0]
[1737647176560,30.21423869,250.05,249.97,2.0]
[1737647176759,30.21423869,249.99,249.94,1.0]
[1737647176939,23.776884,249.94,249.82,12.28199481]
[1737647177256,19.27442111,250.23,250.0,1.0]
[1737647177564,3.9971,250.18,250.09,1.0]
[1737647177966,3.9971,250.18,250.08,1.0]
[1737647178147,13.9899,250.18,250.07,1.0]
[1737647178464,30.21423869,250.11,250.09,1.0]
[1737647178651,30.21423869,250.13,250.08,1.0]
[1737647178853,30.21423869,250.13,250.01,20.0]
[1737647178854,2.34451965,250.17,250.16,1.0]
[1737647179342,2.34451965,250.17,250.13,1.0]
[1737647179543,2.34451965,250.17,250.11,1.0]
[1737647179750,30.21423869,250.16,250.09,1.0]
[1737647179949,30.21423869,250.14,250.09,1.0]
[1737647180259,30.21423869,250.17,250.12,2.0]
[1737647180767,30.21423869,250.13,250.11,1.0]
[1737647180966,30.21423869,250.17,250.13,1.0]
[1737647181262,27.773784,250.19,250.12,1.0]
[1737647181263,30.21423869,250.16,250.12,1.0]
[1737647181458,3.9969,250.19,250.06,1.0]
[1737647181459,30.21423869,250.13,250.06,1.0]
[1737647181639,30.21423869,250.07,249.99,1.0]
[1737647181835,30.21423869,250.09,250.04,1.0]
[1737647182062,30.21423869,250.07,249.98,1.0]
[1737647182368,30.21423869,250.09,250.02,1.0]
[1737647182550,30.21423869,250.05,249.98,1.0]
[1737647182867,30.21423869,249.99,249.86,1.0]
[1737647183094,30.21423869,250.01,249.96,1.0]
[1737647183367,30.21423869,250.03,249.96,1.0]
[1737647183568,23.776884,249.96,249.88,1.0]
[1737647183863,30.21423869,249.94,249.88,1.0]
[1737647184064,30.21423869,250.0,249.94,1.0]
[1737647184273,30.21423869,250.0,249.92,2.0]
[1737647184488,30.21423869,249.96,249.92,1.0]
[1737647184690,30.21423869,249.96,249.83,2.0]
[1737647184691,30.21423869,249.94,249.83,2.0]
[1737647184872,30.21423869,249.91,249.83,2.0]
[1737647185064,30.21423869,249.91,249.57,0.063]
[1737647185065,30.21423869,249.89,249.81,1.0]
[1737647185405,30.21423869,249.84,249.79,1.0]
[1737647185574,14.0028,249.95,249.83,1.0]